Cogmind - Beta 12 @@@ ROGUE MODE // 2023.10.07 @ 13:34:42 Player: Blitzeker Result: Destroyed by S-27 Virus with Autogun Performance ------------- Evolutions (4) 2000 Regions Visited (9) 1800 Robots Destroyed (54) 270 Value Destroyed (1902) 1902 Prototype IDs (3) 60 Alien Tech Used (0) 0 Bonus (151) 151 TOTAL SCORE: 6183 Bonus ------- Follower Combat Kills 151 Cogmind --------- Core Integrity 0/850 Matter 350/350 Energy 56/100 System Corruption 0% Temperature Cool (1) Movement Treading (170) Location -6/Lower Caves Parts ------- > --- POWER (1) -------- (None) > --- PROPULSION (3) --- Armored Treads > --- UTILITY (8) ------ Advanced Heat Sink Small Storage Unit Small Matter Pod Improved Signal Interpreter Advanced Targeting Computer Advanced Targeting Computer Hacking Suite > --- WEAPON (3) ------- (None) > --- INVENTORY (8) ---- Nuclear Core Improved Shield Generator Dynamic Insulation System Heavy Laser Peak State ------------ > --- POWER ------------ Improved Ion Engine > --- PROPULSION ------- Armored Treads Advanced Treads Improved Medium Treads > --- UTILITY ---------- Improved Heat Sink Medium Storage Unit Sensor Array Improved Signal Interpreter Advanced Targeting Computer Advanced Targeting Computer Reflective Plating Hacking Suite > --- WEAPON ----------- Heavy Laser Phase Cannon Hypervelocity Gauss Rifle > --- INVENTORY -------- Nuclear Core Armored Treads Armored Treads Advanced Heat Sink Small Storage Unit Improved Hardlight Generator Hacking Suite Dynamic Insulation System Heavy EM Shotgun Ripper [Rating: 50] Favorites ----------- Power Improved Ion Engine Engine Improved Ion Engine Power Core Light Nuclear Core Propulsion Armored Treads Treads Armored Treads Leg Aluminum Leg Utility Signal Interpreter Device Sensor Array Storage Medium Storage Unit Processor Signal Interpreter Hackware Hacking Suite Protection Reflective Plating Weapon Ripper Energy Gun Small Laser Energy Cannon Phase Cannon Ballistic Gun Minigun Slashing Weapon Ripper Build | -11 -10 -10 -9 -9 -8 -8 -8 -6 -6 ------- Run | Jun Mat Min Mat Min Mat Sto Rec Fac Low Slots Evolved 8 | . . . 2 . 2 . . 4 . Power . | . . . . . . . . . . Propulsion 1 | . . . . . . . . 1 . Utility 6 | . . . 2 . 2 . . 2 . Weapon 1 | . . . . . . . . 1 . Parts Attached 87 | 5 4 8 1 1 16 27 6 8 11 Power 9 | . 2 1 . . 2 3 1 . . Engine 8 | . 2 1 . . 2 2 1 . . Core 1 | . . . . . . 1 . . . Reactor . | . . . . . . . . . . Propulsion 16 | 2 . 3 . 1 2 4 . 2 2 Treads 12 | 2 . . . . 2 4 . 2 2 Leg 4 | . . 3 . 1 . . . . . Wheel . | . . . . . . . . . . Hover . | . . . . . . . . . . Flight . | . . . . . . . . . . Utility 25 | 1 1 2 1 . 5 3 2 4 6 Device 10 | 1 . 1 1 . 2 2 . . 3 Storage 4 | . . 1 . . 1 . . . 2 Processor 4 | . 1 . . . . . . 3 . Hackware 2 | . . . . . 1 . . . 1 Protection 5 | . . . . . 1 1 2 1 . Artifact . | . . . . . . . . . . Weapon 37 | 2 1 2 . . 7 17 3 2 3 Energy Gun 10 | 1 1 2 . . 2 2 1 . 1 Energy Cannon 7 | . . . . . . 4 1 2 . Ballistic Gun 9 | 1 . . . . 2 5 . . 1 Ballistic Cannon . | . . . . . . . . . . Launcher . | . . . . . . . . . . Special Weapon . | . . . . . . . . . . Impact Weapon . | . . . . . . . . . . Slashing Weapon 11 | . . . . . 3 6 1 . 1 Piercing Weapon . | . . . . . . . . . . Special Melee Weapon . | . . . . . . . . . . Unidentified Prototypes 3 | . . . 1 . . 2 . . . Parts Lost 25 | . 1 1 . 2 1 2 1 . 17 Power 3 | . 1 . . 1 . . . . 1 Propulsion 6 | . . 1 . 1 . . . . 4 Utility 11 | . . . . . 1 2 1 . 7 Weapon 5 | . . . . . . . . . 5 Highest Loss Streak 14 | . 1 1 . 2 1 1 1 . 14 To Critical Strikes 1 | . . . . . . . . . 1 Average Slot Usage (%) 92 | . 74 90 88 72 86 99 96 99 87 Engine 5 | . 7 7 11 3 8 6 5 6 3 Core 1 | . . . . . . 2 3 . . Treads 13 | . 28 4 . . 3 17 18 20 14 Leg 5 | . . 23 22 14 14 . . . . Device 12 | . . . 11 11 14 17 18 13 12 Storage 8 | . . 11 11 11 9 9 9 6 7 Processor 13 | . 10 14 11 11 9 9 9 19 20 Hackware 5 | . . . . . 8 9 9 6 5 Protection 4 | . . . . . 1 8 5 6 3 Energy Gun 10 | . 19 28 22 22 9 1 7 6 5 Energy Cannon 3 | . . . . . . 6 1 5 3 Ballistic Gun 1 | . 8 . . . 5 5 . . . Slashing Weapon 4 | . . . . . 2 4 8 6 5 Naked Turns . | . . . . . . . . . . Heaviest Build 44 | 3 8 12 20 20 32 37 36 44 41 Greatest Support 72 | 3 3 20 20 20 40 42 42 72 72 Greatest Overweight (x) 2 | . 2 . . 1 . 1 . . . Average Overweight (x) . | . 1 . . . . . . . . Largest Inventory Capacity 10 | 5 5 8 8 8 10 10 10 10 10 Average Capacity 8 | 5 5 7 8 8 8 10 10 10 9 Most Carried 10 | 5 5 8 8 8 10 10 10 10 10 Average Carried 8 | 4 4 7 7 8 8 9 9 8 7 Final Capacity 10 | 5 5 8 8 8 10 10 10 10 8 Final Carried 10 | 5 5 8 8 8 10 10 10 10 4 Class Distribution -------------------- 65% | Scavenger-Mutant 33% | Mutant Dominant Class ---------------- Mutant | -10/Materials Scavenger-Mutant | -10/Mines Scavenger-Mutant | -9/Materials Mutant | -9/Mines Scavenger-Mutant | -8/Materials Mutant | -8/Storage Scavenger-Mutant | -8/Recycling Scavenger-Mutant | -6/Factory Scavenger-Mutant | -6/Lower Caves Resources | -11 -10 -10 -9 -9 -8 -8 -8 -6 -6 ----------- Run | Jun Mat Min Mat Min Mat Sto Rec Fac Low Matter Collected 1404 | 280 94 80 10 10 155 356 85 . 334 Remotely 212 | . . . . . . . . . 212 Salvage Created 2650 | 110 355 170 . . 171 923 524 . 397 Parts 138 | 6 17 7 . . 14 47 28 . 19 Haulers Intercepted 2 | . . . . . . 2 . . . Recyclers Shooed . | . . . . . . . . . . Parts Field Recycled . | . . . . . . . . . . Retrieved Matter . | . . . . . . . . . . Parts Self-Destructed 24 | . . . . . . . . . 24 Prevented 7 | . . . . . . . . . 7 Kills | -11 -10 -10 -9 -9 -8 -8 -8 -6 -6 ------- Run | Jun Mat Min Mat Min Mat Sto Rec Fac Low Combat Hostiles Destroyed 41 | . 8 3 . . 3 14 5 . 8 Melee 20 | . . . . . 3 8 5 . 4 Guns 15 | . 8 3 . . . 2 . . 2 Cannons 5 | . . . . . . 4 . . 1 AOE 1 | . . . . . . . . . 1 Classes Destroyed 10 | 2 1 1 . . 1 3 1 . 1 Worker 3 | . . 2 . . . 1 . . . Tunneler 2 | 1 . . . . . . 1 . . Hauler 2 | . . . . . . 2 . . . Recycler 4 | 1 . . . . . . 3 . . Operator 1 | . . . . . . 1 . . . Watcher 1 | . . . . . . 1 . . . Swarmer 3 | . . . . . . . . . 3 Grunt 21 | . 8 3 . . . 7 . . 3 Duelist 2 | . . . . . . . 1 . 1 Sentry 15 | . . . . . 3 7 4 . 1 Best Kill Streak 4 | 2 4 1 . . 1 4 3 . 4 Combat Bots Only 4 | . 4 1 . . 1 3 2 . 4 Max Kills in Single Turn 1 | 1 1 1 . . 1 1 1 . 1 Gunslinging . | . . . . . . . . . . Exploded 1 | . . . . . . . . . 1 Melee 1 | . . . . . 1 1 1 . 1 Uniques/NPCs Destroyed . | . . . . . . . . . . Combat | -11 -10 -10 -9 -9 -8 -8 -8 -6 -6 -------- Run | Jun Mat Min Mat Min Mat Sto Rec Fac Low Damage Taken 5287 | . 437 253 43 320 254 831 291 . 2858 Core 1168 | . 80 49 . 25 43 60 54 . 857 Absorbed by Shields 54 | . . . . . . . . . 54 Core Remaining (%) 78 | 100 . 48 . 93 . . 71 . . Volleys Fired 108 | 10 26 18 2 . 3 33 3 . 13 Largest 3 | 2 2 2 2 . 2 2 2 . 3 Hottest 187 | 60 80 80 80 . 80 85 129 . 187 Shots Fired 216 | 20 52 36 4 . 4 62 6 . 32 Gun 174 | 20 52 36 4 . 4 33 3 . 22 Cannon 42 | . . . . . . 29 3 . 10 Launcher . | . . . . . . . . . . Special . | . . . . . . . . . . Kinetic 66 | 10 18 . . . . 29 . . 9 Thermal 145 | 10 34 36 4 . 4 31 6 . 20 Explosive . | . . . . . . . . . . Electromagnetic 5 | . . . . . . 2 . . 3 Robot Hit Streak 12 | 4 7 10 1 . 1 12 1 . 4 Robot Miss Streak 5 | 1 4 3 2 . 1 5 3 . 4 Penetration Max 2 | . . . . . . . . . 2 Secondary Targets 1 | . 1 . . . . . . . . Max Gunslinging Chain 1 | . 1 . . . . . . . . Shots Hit Robots 178 | 14 34 24 1 . 9 54 15 . 27 Core Hits 82 | 3 16 10 . . 3 26 7 . 17 Critical Kills 1 | . . . . . . 1 . . . Critical Parts Destroyed 4 | . . . . . . . . . 4 Critical Strikes 9 | . . . . . 1 1 2 . 5 Destroy 5 | . . . . . . 1 . . 4 Sever 4 | . . . . . 1 . 2 . 1 Melee Attacks 62 | . . . . . 7 22 16 . 17 Impact . | . . . . . . . . . . Slashing 62 | . . . . . 7 22 16 . 17 Piercing . | . . . . . . . . . . Sneak Attacks 7 | . . . . . . 2 5 . . Combat Hostiles 2 | . . . . . . . 2 . . Follow-up Attacks . | . . . . . . . . . . Damage Inflicted 4036 | 174 405 261 12 . 269 1403 715 . 797 Guns 1455 | 174 405 261 12 . 25 315 20 . 243 Cannons 612 | . . . . . . 386 44 . 182 Explosions 96 | . . . . . . . . . 96 Melee 1873 | . . . . . 244 702 651 . 276 Ramming . | . . . . . . . . . . Kinetic 603 | 98 159 . . . . 276 . . 70 Thermal 1514 | 76 246 261 12 . 25 401 64 . 429 Explosive . | . . . . . . . . . . Electromagnetic 46 | . . . . . . 24 . . 22 Impact . | . . . . . . . . . . Slashing 1873 | . . . . . 244 702 651 . 276 Piercing . | . . . . . . . . . . Highest Corruption . | . . . . . . . . . . Average Corruption . | . . . . . . . . . . Corruption Purged . | . . . . . . . . . . Corruption Blocked . | . . . . . . . . . . Overload Shots . | . . . . . . . . . . Overflow Damage 121 | . . . . . . 27 94 . . Projectiles . | . . . . . . . . . . Explosions . | . . . . . . . . . . Melee 121 | . . . . . . 27 94 . . Knockbacks . | . . . . . . . . . . Impact . | . . . . . . . . . . Kinetic . | . . . . . . . . . . Secondary . | . . . . . . . . . . Self-Inflicted Damage 42 | . . . . . . . . . 42 Shots 1 | . . . . . . . . . 1 Rammed . | . . . . . . . . . . Targets Rammed . | . . . . . . . . . . Kicked . | . . . . . . . . . . Crushed . | . . . . . . . . . . Highest Temperature 951 | 15 90 153 9 . 7 50 72 . 951 Average Temperature 120 | 10 34 53 6 . 7 17 36 . 457 Received Heat Transfer 1648 | . 276 144 18 . 99 378 90 . 643 Effects 25 | . . . . . . . . . 25 Shutdowns 2 | . . . . . . . . . 2 Energy Bleed 1 | . . . . . . . . . 1 Interference 5 | . . . . . . . . . 5 Matter Decay 3 | . . . . . . . . . 3 Short Circuit 5 | . . . . . . . . . 5 Damage (minor) 4 | . . . . . . . . . 4 Damage (major) 3 | . . . . . . . . . 3 Damage (core) 2 | . . . . . . . . . 2 Siege Activations . | . . . . . . . . . . Robots Corrupted . | . . . . . . . . . . Combat Hostiles . | . . . . . . . . . . Parts Fried . | . . . . . . . . . . Impact Corruptions . | . . . . . . . . . . Robots Melted . | . . . . . . . . . . Combat Hostiles . | . . . . . . . . . . Parts Melted 6 | . 1 4 . . . 1 . . . Heat Transferred 2807 | 175 550 600 25 . 62 666 111 . 618 Parts Sabotaged . | . . . . . . . . . . Parts Stolen . | . . . . . . . . . . Parts Stripped . | . . . . . . . . . . Power Chain Reactions 1 | . . . . . . . . . 1 Missiles Intercepted . | . . . . . . . . . . Alert | -11 -10 -10 -9 -9 -8 -8 -8 -6 -6 ------- Run | Jun Mat Min Mat Min Mat Sto Rec Fac Low Peak Influence 403 | 10 224 139 64 24 105 403 194 12 . Initial 113 | . 6 . . 24 . 44 113 . . Average 81 | 2 120 63 35 5 43 186 76 3 . Maximum Alert Level 2 | . 1 . . . . 2 . . . Low Security (%) 89 | 100 97 100 100 100 100 53 100 100 . Level 1 10 | . 2 . . . . 45 . . . Level 2 . | . . . . . . . . . . Level 3 . | . . . . . . . . . . Level 4 . | . . . . . . . . . . Level 5 . | . . . . . . . . . . High Security . | . . . . . . . . . . Max Security . | . . . . . . . . . . Squads Dispatched 5 | . 1 . . . 1 2 . 1 . Investigation 1 | . 1 . . . . . . . . Extermination 1 | . . . . . . . . 1 . Reinforcement 3 | . . . . . 1 2 . . . Assault . | . . . . . . . . . . Garrison . | . . . . . . . . . . Intercept . | . . . . . . . . . . Searches Triggered . | . . . . . . . . . . Construction Impeded . | . . . . . . . . . . Haulers Reinforced . | . . . . . . . . . . Active Scanning Responses . | . . . . . . . . . . Cargo Convoy Interrupts . | . . . . . . . . . . Stealth | -11 -10 -10 -9 -9 -8 -8 -8 -6 -6 --------- Run | Jun Mat Min Mat Min Mat Sto Rec Fac Low Distress Signals 7 | . . . 1 . 3 3 . . . Communications Jammed . | . . . . . . . . . . Distress Signals . | . . . . . . . . . . Times Spotted 92 | . 10 7 2 21 11 21 4 . 16 Peak Tracking Total 16 | . 4 3 3 16 5 4 2 1 9 Tactical Retreats 5 | . . 2 . . . . . . 3 Traps | -11 -10 -10 -9 -9 -8 -8 -8 -6 -6 ------- Run | Jun Mat Min Mat Min Mat Sto Rec Fac Low Traps Triggered 1 | . 1 . . . . . . . . Indirectly . | . . . . . . . . . . Trap Hack Attempts . | . . . . . . . . . . Triggered . | . . . . . . . . . . Disarmed . | . . . . . . . . . . Reprogrammed . | . . . . . . . . . . Reused . | . . . . . . . . . . Traps Extracted . | . . . . . . . . . . Installed . | . . . . . . . . . . Triggered 5 | . . . . . . . . . 5 Machines | -11 -10 -10 -9 -9 -8 -8 -8 -6 -6 ---------- Run | Jun Mat Min Mat Min Mat Sto Rec Fac Low Machines Disabled 3 | . . . . . . 3 . . . Max in Single Turn 1 | . . . . . . 1 . . . Machines Repaired . | . . . . . . . . . . Machines Sabotaged . | . . . . . . . . . . Overloaded Fab Kills . | . . . . . . . . . . Hacking | -11 -10 -10 -9 -9 -8 -8 -8 -6 -6 --------- Run | Jun Mat Min Mat Min Mat Sto Rec Fac Low Machines Accessed 17 | . 2 1 2 . 1 4 6 1 . Terminals 14 | . 2 . 2 . 1 3 5 1 . Fabricators . | . . . . . . . . . . Repair Stations . | . . . . . . . . . . Recycling Units 2 | . . . . . . 1 1 . . Scanalyzers . | . . . . . . . . . . Garrison Access . | . . . . . . . . . . Total Hacks 32 | . 5 1 2 . 4 9 10 1 . Successful 17 | . 3 1 1 . 3 5 3 1 . Failed 15 | . 2 . 1 . 1 4 7 . . Catastrophic 6 | . 1 . 1 . . 1 3 . . Database Lockouts . | . . . . . . . . . . Manual 9 | . 3 . 1 . . 3 2 . . Terminals 28 | . 5 . 2 . 4 7 9 1 . Fabricators . | . . . . . . . . . . Repair Stations . | . . . . . . . . . . Recycling Units 3 | . . . . . . 2 1 . . Scanalyzers . | . . . . . . . . . . Garrison Access . | . . . . . . . . . . Terminal Hacks 14 | . 3 1 1 . 3 3 2 1 . Open Door 2 | . . 1 . . . 1 . . . Branch Access Points 1 | . 1 . . . . . . . . Alert Level 4 | . . . 1 . 1 1 1 . . Unreport Threat 2 | . 2 . . . . . . . . Locate Traps 3 | . . . . . 1 1 . 1 . Dispatch Records 1 | . . . . . 1 . . . . Zone Layout 1 | . . . . . . . 1 . . Fabricator Hacks . | . . . . . . . . . . Repair Station Hacks . | . . . . . . . . . . Recycling Unit Hacks 3 | . . . . . . 2 1 . . Report Inventory 2 | . . . . . . 1 1 . . Retrieve Components 1 | . . . . . . 1 . . . Scanalyzer . | . . . . . . . . . . Garrison Access Hacks . | . . . . . . . . . . Unauthorized Hacks . | . . . . . . . . . . Terminals . | . . . . . . . . . . Fabricators . | . . . . . . . . . . Repair Stations . | . . . . . . . . . . Recycling Units . | . . . . . . . . . . Scanalyzers . | . . . . . . . . . . Garrison Access . | . . . . . . . . . . Data Cores Recovered 2 | . . . . . 1 1 . . . Used . | . . . . . . . . . . Hacking Detections 10 | . 2 . 1 . 1 3 3 . . Full Trace Events . | . . . . . . . . . . Feedback Events . | . . . . . . . . . . Feedback Blocked . | . . . . . . . . . . Robot Schematics Acquired . | . . . . . . . . . . Robots Built . | . . . . . . . . . . Authchips . | . . . . . . . . . . Time . | . . . . . . . . . . Total Robot Build Rating . | . . . . . . . . . . Part Schematics Acquired . | . . . . . . . . . . Parts Built . | . . . . . . . . . . Authchips . | . . . . . . . . . . Time . | . . . . . . . . . . Total Part Build Rating . | . . . . . . . . . . Parts Repaired . | . . . . . . . . . . Time . | . . . . . . . . . . Parts Recycled . | . . . . . . . . . . Recycled Matter . | . . . . . . . . . . Retrieved Matter . | . . . . . . . . . . Retrieved Components 8 | . . . . . . 8 . . . Parts Scanalyzed . | . . . . . . . . . . Part Schematics Acquired . | . . . . . . . . . . Parts Damaged . | . . . . . . . . . . Bothacking | -11 -10 -10 -9 -9 -8 -8 -8 -6 -6 ------------ Run | Jun Mat Min Mat Min Mat Sto Rec Fac Low Used RIF Installer . | . . . . . . . . . . Robots Hacked . | . . . . . . . . . . Non-combat . | . . . . . . . . . . Combat . | . . . . . . . . . . Robot Hacks Applied . | . . . . . . . . . . Relay Couplers Released . | . . . . . . . . . . Fabnet Peak Effective % . | . . . . . . . . . . Robots Rewired . | . . . . . . . . . . Allies Hacked . | . . . . . . . . . . Hacks Repelled . | . . . . . . . . . . Allies | -11 -10 -10 -9 -9 -8 -8 -8 -6 -6 -------- Run | Jun Mat Min Mat Min Mat Sto Rec Fac Low Total Allies 3 | . . 3 . . . . . . . Largest Group 2 | . . 2 2 2 1 . . . . Highest-Rated Group 44 | . . 44 44 44 13 . . . . Highest-Rated Ally 31 | . . 31 31 31 13 . . . . Total Orders . | . . . . . . . . . . Ally Attacks 31 | . . 7 9 14 1 . . . . Total Damage 274 | . . 146 106 22 . . . . . Kills 5 | . . 3 2 . . . . . . Allies Corrupted . | . . . . . . . . . . Allies Melted . | . . . . . . . . . . Intel | -11 -10 -10 -9 -9 -8 -8 -8 -6 -6 ------- Run | Jun Mat Min Mat Min Mat Sto Rec Fac Low Robot Analysis Total . | . . . . . . . . . . Derelict Logs Recovered 5 | . . 2 . 1 . . . . 2 Drone Launches 15 | . . . 3 12 . . . . . Drone Recoveries 1 | . . . . 1 . . . . . Exploration | -11 -10 -10 -9 -9 -8 -8 -8 -6 -6 ------------- Run | Jun Mat Min Mat Min Mat Sto Rec Fac Low Turns Passed 5775 | 73 219 876 168 178 347 1079 919 770 1146 Spaces Moved 3342 | 55 119 646 125 110 204 507 530 412 634 Core 279 | 55 119 105 . . . . . . . Treads 2109 | . . . . . 26 507 530 412 634 Legs 954 | . . 541 125 110 178 . . . . Wheels . | . . . . . . . . . . Hover . | . . . . . . . . . . Flight . | . . . . . . . . . . Fastest Speed 50 | 50 50 50 120 120 120 157 157 158 158 Average Speed 143 | 50 102 108 120 161 125 166 157 160 161 Slowest Speed 250 | 50 150 120 120 190 160 250 157 161 170 Overloaded Moves . | . . . . . . . . . . Propulsion Burnouts . | . . . . . . . . . . Robots Hopped . | . . . . . . . . . . Cave-ins Triggered . | . . . . . . . . . . Exploration Rate (%) 45 | 3 29 97 19 49 21 58 95 6 75 Regions Visited 9 Branch Regions 5 Pre-discovered Areas 2 | . . 1 . . . . . . 1 Known Exits Taken 8 | . 1 1 1 1 1 1 1 1 . Unknown Exits Taken 1 | 1 . . . . . . . . . Scrap Searched 3 | . . 1 . 1 . . . . 1 Spaces Dug . | . . . . . . . . . . Terrain Destroyed 20 | . . . . . . 2 1 . 17 Melee . | . . . . . . . . . . Projectile 7 | . . . . . . 2 1 . 4 AOE 13 | . . . . . . . . . 13 Terrain Rammed . | . . . . . . . . . . Walls Destroyed . | . . . . . . . . . . Machines Disabled . | . . . . . . . . . . Actions | -11 -10 -10 -9 -9 -8 -8 -8 -6 -6 --------- Run | Jun Mat Min Mat Min Mat Sto Rec Fac Low Total 4019 | 80 163 785 139 110 281 649 586 523 703 Wait 327 | . 11 99 10 . 33 31 26 94 23 Move 3333 | 54 118 645 124 109 203 506 529 411 634 Hop . | . . . . . . . . . . Pick Up 54 | 9 1 7 2 . 11 10 3 6 5 Fast Attach 30 | 1 4 6 . 1 2 12 2 2 . Attach 33 | 4 . 1 1 . 8 2 2 5 10 Detach 2 | 1 . . . . 1 . . . . Swap 24 | . . 1 . . 6 13 2 1 1 Drop 46 | 1 3 8 . . 7 20 3 4 . Fire 108 | 10 26 18 2 . 3 33 3 . 13 Melee 62 | . . . . . 7 22 16 . 17 Ram . | . . . . . . . . . . Kick . | . . . . . . . . . . Crush . | . . . . . . . . . . Escape Stasis . | . . . . . . . . . . Rewire . | . . . . . . . . . . Trap . | . . . . . . . . . . Miscellaneous . | . . . . . . . . . . Route ------- -11/Junkyard -10/Materials (discovered 2 exits: *Min x2) -10/Mines (discovered 2 exits: *Mat x2) -9/Materials -9/Mines -8/Materials -8/Storage -8/Recycling -6/Factory -6/Lower Caves History --------- Turn | Location | Event 4 | -11/Junkyard | Discovered new exit (range 15) 74 | -11/Junkyard | Entered Materials 82 | -10/Materials | Identified exit to Mines 293 | -10/Materials | Entered Mines 296 | -10/Mines | Received a Mining Laser from a helpful Derelict 307 | -10/Mines | Build established: Mutant 307 | -10/Mines | Discovered new exit (range 7) 310 | -10/Mines | Identified exit to Materials 552 | -10/Mines | Learned location of Zion (-6) 752 | -10/Mines | Discovered exit to Materials (range 9) 784 | -10/Mines | Core integrity fell below 50% 897 | -10/Mines | A weapon hastily lodged in a ceiling crevice suddenly fell to the ground 923 | -10/Mines | Found the Drone Emporium 930 | -10/Mines | Found Prototype Device 1008 | -10/Mines | Build established: Scavenger-Mutant 1169 | -10/Mines | Entered Materials 1169 | -9/Materials | Accompanied by 2 allies 1169 | -9/Materials | Evolved 2 slots: Utility x2 1169 | -9/Materials | Identified Bomb Drone Bay 1174 | -9/Materials | Led the pair of lost Derelicts to an unsafe place 1223 | -9/Materials | Discovered new exit (range 14) 1279 | -9/Materials | Identified exit to Mines 1337 | -9/Materials | Entered Mines 1337 | -9/Mines | Accompanied by 2 allies 1362 | -9/Mines | Assembled infested the area 1367 | -9/Mines | Assisted by a Guerilla fighting off Assembled 1424 | -9/Mines | Learned Materials terminal intel 1482 | -9/Mines | Discovered new exit (range 6) 1514 | -9/Mines | Identified exit to Materials 1515 | -9/Mines | Entered Materials 1515 | -8/Materials | Accompanied by 2 allies 1515 | -8/Materials | Evolved 2 slots: Utility x2 1516 | -8/Materials | Loaded intel: 12 terminal locations 1762 | -8/Materials | Discovered new exit (range 15) 1860 | -8/Materials | Identified exit to Storage 1862 | -8/Materials | Entered Storage 1863 | -8/Storage | Identified exit to Recycling 2370 | -8/Storage | Build established: Mutant 2826 | -8/Storage | Used back door to open Recycling access 2941 | -8/Storage | Entered Recycling 3589 | -8/Recycling | Build established: Scavenger-Mutant 3750 | -8/Recycling | Discovered new exit (range 14) 3768 | -8/Recycling | Identified exit to Factory 3860 | -8/Recycling | Entered Factory 3860 | -6/Factory | Evolved 4 slots: Propulsion x1, Utility x2, Weapon x1 4162 | -6/Factory | Discovered new exit (range 3) 4165 | -6/Factory | Identified exit to Lower Caves 4630 | -6/Factory | Entered Lower Caves 5308 | -6/Lower Caves | Attracted the attention of an 0b10 outpost 5364 | -6/Lower Caves | Core integrity fell below 50% 5401 | -6/Lower Caves | Core integrity fell below 20% 5417 | -6/Lower Caves | Lost 14 parts (1p4n6u3w) 5512 | -6/Lower Caves | Learned location of 1 exit from Factory 5776 | -6/Lower Caves | Destroyed by S-27 Virus with Autogun Last Messages --------------- 05455_ Acquired Hvy. Laser. 05469_ Acquired Sml. Matter Pod. 05470_ Acquired 50 matter. 05471_ Acquired 6 matter. 05471_ Acquired 4 matter. 05512_ Acquired derelict log, extracted data. Data stored: Factory exits (x1). 05650_ Searching scrap... 05650_ Found Com. Wheel. 05650_ Found Imp. Shield Generator. 05650_ Found 16 Matter. 05653_ Acquired Imp. Shield Generator. 05686_ Acquired derelict log, extracted data. World map confirmed: -6/Zion. 05770_ Ripper destroyed. 05771_ Tractor Beam destroyed. 05772_ Chain reaction triggered in Lgt. Nuclear Core. 05772_ S-27 Virus destroyed. 05774_ Hvy. EM Shotgun destroyed. 05776_ VTOL Module fries itself beyond repair. Map ----- +----------------------------------------------------+ | ?????????????????????????????????????????????????? | | ?????????????????????????????????????????????????? | | ?????????????????????????????????????????????????? | | ?????????????????????????????????????????????????? | | ?????????????????????????????????????????????????? | | ?????????????????????????????????????????????????? | | ?????????????????????????????????????????????????? | | ?????????????????????????????????????????????????? | | ?????????????????????????????????????????????????? | | ?????????????????????????????????????????????????? | | ?????????????????????????????????????????????????? | | ??????????????#????#?????????????????????????????? | | ?????????????## ?### ????????????????????????????? | | ?????????????? #"" ???????????????????????????? | | ???????????????? ???????????????????????????? | | ??????????? ?????#" ?#####????????????????????? | | ???????????? ##" ## ##?????? ???????????? | | ???????????????? """ ##????? ???????????? | | ????????????????????""" m #????? ?????????? | | ?????????#?????????????# #????? ????????? | | ?????#### ?????????????## #????? ???????? | | ?????# ????????###???## ####????? ????##### | | ?????# #??????### ##??#; ;#??????? #?????? # | | ?????# #?????## #?##; ;#?###### ?????????# # | | ###### #?????# ###;;s%;###"""#"#????####### | | #????## s @[;##" "##???# | | = "" #???## ####;;;;;## = "#??### ! | | %"""" #??## ##?######### !%[ #?## ### % | | " "" #### #### %= ### ### # | | " ## [ % % "" " | | " " " ###### = !* | | " " # ### #????# %! | | "" # #?## ## ###???## ### % %"# | | #### ### #??# ### ##????## ##?# "" "# | | ??## #?# #??# ### #?????# ### ##" # | | ?## ### #?? ## ######## " ## | | ?# #? ##### ##?# "#? | | ?# ###### #???## #??# % ##? | | ?# ###### #????###?## #?? | | ?# #???????## ?? | | ?# #####???????# #" ##? | | ?## ###??????????# ##################### ##?? | | ??#####????????????#####???????????????????####??? | | ?????????????????????????????????????????????????? | | ?????????????????????????????????????????????????? | | ?????????????????????????????????????????????????? | | ?????????????????????????????????????????????????? | | ?????????????????????????????????????????????????? | | ?????????????????????????????????????????????????? | | ?????????????????????????????????????????????????? | +----------------------------------------------------+ Best States ------------- Heat Dissipation 56 Energy Generation 14 Energy Capacity 265 Matter Stores 350 Matter Capacity 350 Sight Range 16 Robot Scan Range 14 Terrain Scan Density 10 Armor Coverage 225 Resistance: KI 20 Resistance: TH 10 Evasion (%) 55 Targeting Accuracy 16 Recoil Reduction 3 Offensive Hacking 10 Item Schematics ----------------- None Robot Schematics ------------------ None Fabricated ------------ Nothing Alien Tech Used ----------------- None Achievements -------------- \\IAMDERELICT Challenges ------------ None Game ------ Seed DeepDataCycler Manual? 0 Play Time 01:16:55 Cumulative 55.5 hours Start 2023.10.07 @ 12:12:24 End 2023.10.07 @ 13:34:42 Sessions 1 Manual Loads 0 Difficulty Rogue Special Mode None Game No. 31 Rogue 29 Adventurer 2 Explorer 0 Win Type - Total 1 Types 1/0/0/0/0/0/0/0/0 Lore% 41 Gallery% 37 Achievement% 35 Wizard Run 0 Options --------- ASCII 0 Keyboard 0 Movement Mouse Keybinds 0 Fullscreen 1 Font 24/Smallcaps Map View 76x50 Tactical HUD 1 Map Filters NONE Filters NONE Steam 1 RUN: 58940d03-1cd5-43d0-88ec-b3493fc70cbc